[Event "FIDE WCCC U12 2018"]
[Site "Santiago de Compostela"]
[Date "2018.11.09"]
[Round "5"]
[White "Akhmedinov, Satbek"]
[Black "Tyurin, Artem"]
[Result "1-0"]
[ECO "B22"]
[WhiteElo "1856"]
[BlackElo "2018"]
[Annotator "NA RC"]
[PlyCount "133"]
[EventDate "2018.11.04"]
[EventType "swiss"]
[EventCountry "ESP"]
[SourceTitle "playchess.com"]
[Source "ChessBase"]
[SourceQuality "1"]
[TimeControl "40/5400+30:1800+30"]

{[%evp 12,133,18,12,32767,0,16,-15,28,0,35,26,36,40,30,20,60,32767,32767,32767,32767,32767,32767,32767,32767,32767,32767,32767,16,32767,10,-10,32767,32767,32767,-15,-15,-31,32767,32767,-17,32767,0,32767,32767,32767,-35,32767,-25,-39,40,46,32767,0,0,0,0,0,0,32767,32767,35,327,32767,219,32767,190,242,244,99,660,1014,794,458,609,562,614,32767,32767,32767,935,617,12839,645,32767,859,32767,911,6179,864,5293,6175,5181,6279,29989,29989,29980,29988,32767,32767,32767,29981,1929,29981,29995,12838,6860,4133,29991,29985,29982,29980,29986,5081,29982,12844,29983,12845,29983,29984,29986,29987,29992,29993]} 1. e4 {[%emt 0:00:00]} c5 {[%emt 0:00:00]} 2. c3 {[%emt 0:00:00]} d5 {[%emt 0:00:03]} 3. exd5 {[%emt 0:00:00]} Qxd5 {[%emt 0:00:07]} 4. d4 {[%emt 0:00:06]} Nf6 {[%emt 0:04:18]} 5. Nf3 {[%emt 0:00:08]} Bg4 {[%emt 0:01:32]} 6. Be2 {[%emt 0:01:26]} e6 {[%emt 0:02:28]} 7. h3 {[%emt 0:02:23]} Bh5 {[%emt 0:01:19]} 8. Na3 {[%emt 0:01:05]} Nc6 {[%emt 0:12:39]} 9. Be3 {[%emt 0:03:57]} cxd4 {[%emt 0:01:35]} 10. Nb5 $1 {[%emt 0:01:13]} Rc8 {[%emt 0:01:04] LiveBook: 15 Games B22: Sicilian: 2 c3} (10... O-O-O 11. Nbxd4 Bc5 12. O-O e5 13. Nf5 Qe4 14. Nd2 Qxf5 15. Bxc5 Bxe2 16. Qxe2 Qd3 17. Qxd3 Rxd3 18. Nc4 {½-½ (18) Pavasovic,D (2601)-Babula,V (2594) Austria 2008}) 11. Nbxd4 {[%emt 0:02:18]} Nxd4 {[%emt 0:07:35]} 12. Bxd4 {[%emt 0:02:01]} a6 {[%emt 0:25:02]} 13. O-O {[%emt 0:08:46]} Be7 {[%emt 0:00:52]} 14. c4 {[%emt 0:09:45]} Qd7 {[%emt 0:05:11]} 15. b3 $146 {[%emt 0:20:27]} ({Predecessor:} 15. Ne5 Bxe2 16. Nxd7 Bxd1 17. Nb6 Rc6 18. Raxd1 {0-1 (54) Mammadov,Z (2132)-Golubev,R Vung Tau 2008}) 15... Bc5 {[%emt 0:05:16]} 16. Bb2 {[%emt 0:06:41]} Qe7 {[%emt 0:02:02]} 17. Ne5 {[%emt 0:02:57]} Bxe2 {[%emt 0:02:59]} 18. Qxe2 {[%emt 0:00:05]} O-O {[%emt 0:00:05]} 19. Rae1 {[%emt 0:00:48]} Rfd8 {[%emt 0:04:13]} 20. Ng4 {[%emt 0:00:47]} Bd4 {[%emt 0:00:46]} 21. Bc1 {[%emt 0:05:05]} Nxg4 {[%emt 0:03:09]} 22. Qxg4 {[%emt 0:00:06]} e5 {[%emt 0:02:06]} 23. Kh1 {[%emt 0:02:16]} g6 {[%emt 0:03:21]} 24. Qg3 {[%emt 0:02:57]} f6 {[%emt 0:04:12]} 25. Re2 {[%emt 0:05:41]} Re8 {[%emt 0:02:07]} 26. Rfe1 {[%emt 0:00:15]} Qb4 {[%emt 0:02:32]} 27. a3 {[%emt 0:02:26]} Qc3 {[%emt 0:00:58]} 28. Be3 {[%emt 0:00:07]} Rcd8 {[%emt 0:01:16]} 29. Qf3 {[%emt 0:02:54]} e4 {[%emt 0:03:43]} 30. Bd2 {[%emt 0:04:44]} Qc2 {[%emt 0:01:28]} (30... exf3 $2 {too greedy.} 31. Rxe8+ Rxe8 32. Rxe8+ Kf7 33. Bxc3 $18) ({Better is} 30... Qxf3 $11 31. gxf3 Bb6 32. fxe4 Rd3) 31. Qg3 {[%emt 0:04:17]} Be5 {[%emt 0:00:50]} 32. Bf4 {[%emt 0:00:40]} Bxf4 {[%emt 0:00:26]} 33. Qxf4 {[%emt 0:00:04]} Qxb3 {[%emt 0:00:10]} 34. Rxe4 {[%emt 0:00:35]} Rxe4 {[%emt 0:00:48]} 35. Qxe4 {[%emt 0:00:44]} Qxa3 {[%emt 0:00:40]} 36. Qxb7 {[%emt 0:01:12]} Qf8 $2 {[%emt 0:00:35]} (36... Qc3 $14 37. Qe7 Rf8) 37. Qxa6 {[%emt 0:00:20]} Rc8 {[%emt 0:00:27]} (37... Qd6 $14 38. Qb5 Qd2) 38. Rd1 {[%emt 0:01:48]} Re8 {[%emt 0:00:34]} (38... Rc7 $16 {was necessary.}) 39. Rd6 {[%emt 0:01:16]} Kg7 {[%emt 0:00:26] [#]} (39... f5 $142 40. c5 Qe7 41. Qc4+ Kf8) 40. c5 $2 {[%emt 0:00:00]} (40. Qa7+ $1 $18 {is the precise move to win.} Re7 41. Qd4) 40... Rc8 $2 {[%emt 0:00:00]} (40... Qe7 $16) 41. Qb7+ {[%emt 0:02:51]} Kh6 {[%emt 0:05:06]} 42. Qe4 {[%emt 0:06:40]} Rc7 {[%emt 0:18:04]} 43. Qf4+ {[%emt 0:00:52]} Kg7 {[%emt 0:00:17]} 44. c6 {[%emt 0:00:18]} Qe7 {[%emt 0:00:06]} 45. Qd4 {[%emt 0:00:58]} Kf7 {[%emt 0:02:33]} 46. Qd5+ {[%emt 0:00:09]} Kf8 {[%emt 0:01:17]} 47. Rd8+ {[%emt 0:04:23]} (47. Re6 $142 Qf7 48. Qd8+ Kg7 49. Rd6) 47... Kg7 {[%emt 0:00:11]} 48. g3 {[%emt 0:09:53]} f5 {[%emt 0:02:43]} 49. Kg2 {[%emt 0:02:14]} Kh6 {[%emt 0:01:20]} 50. Qd2+ {[%emt 0:01:52]} (50. Rd7 $142 Rxd7 51. cxd7) 50... Qg5 {[%emt 0:01:29]} 51. Qd6 {[%emt 0:03:08]} Rxc6 52. Qf8+ {[%emt 0:00:05]} ({And not} 52. Qxc6 Qxd8 53. Qc1+ Kg7 $11) 52... Kh5 {[%emt 0:01:56]} 53. Qf7 {[%emt 0:00:12]} h6 {[%emt 0:01:57]} 54. Rd4 {[%emt 0:00:06]} Rc2 {[%emt 0:00:33]} 55. Rh4+ {[%emt 0:00:06]} Qxh4 {[%emt 0:00:03]} 56. gxh4 {[%emt 0:00:06]} Re2 {[%emt 0:00:50]} 57. Qd5 {[%emt 0:00:43]} Re4 {[%emt 0:00:11]} 58. Qd1+ {[%emt 0:00:25]} (58. Kg3 $142 Rxh4 59. Qd1+ Rg4+ 60. hxg4+ fxg4 61. Qxg4#) 58... Kxh4 {[%emt 0:00:05]} 59. f3 {[%emt 0:00:32]} Rf4 {[%emt 0:00:26]} 60. Qe1+ {[%emt 0:00:18]} Kh5 {[%emt 0:00:21]} 61. Kg3 {[%emt 0:00:06]} Rd4 {[%emt 0:01:32]} 62. Qe5 {[%emt 0:00:51]} (62. f4 $142 Rd3+ 63. Kg2 Rd7 64. h4 g5 65. Qe8+ Kg4 66. Qxd7 gxh4 67. Qd6) 62... Rb4 {[%emt 0:00:33]} 63. Qc5 {[%emt 0:00:53]} Ra4 {[%emt 0:00:27]} 64. f4 {[%emt 0:00:07]} Re4 {[%emt 0:00:33]} 65. h4 {[%emt 0:02:25]} g5 {[%emt 0:00:29]} 66. hxg5 {[%emt 0:00:45]} hxg5 {[%emt 0:00:23]} 67. Qxf5 {[%emt 0:00:08]} 1-0

[Event "FIDE WCCC U12 2018"]
[Site "Santiago de Compostela"]
[Date "2018.11.09"]
[Round "5"]
[White "Rusonik, Max"]
[Black "Park, Evan"]
[Result "0-1"]
[ECO "B06"]
[WhiteElo "1814"]
[BlackElo "1997"]
[Annotator "NA RC"]
[PlyCount "60"]
[EventDate "2018.11.04"]
[EventType "swiss"]
[EventCountry "ESP"]
[SourceTitle "playchess.com"]
[Source "ChessBase"]
[SourceQuality "1"]
[TimeControl "40/5400+30:1800+30"]

{[%evp 13,59,-41,-47,-9,0,-48,-4,-123,-72,32767,32767,32767,32767,32767,32767,32767,32767,-256,-168,-324,-244,-352,32767,32767,32767,32767,32767,32767,32767,-535,32767,-544,32767,32767,-641,-671,32767,-859,32767,32767,-723,-984,-868,32767,-869,-1048,32767,-1231]} 1. e4 {[%emt 0:00:00]} g6 {[%emt 0:00:00]} 2. d4 {[%emt 0:00:02]} Bg7 {[%emt 0:00:00]} 3. Nc3 {[%emt 0:00:50]} d6 {[%emt 0:00:14]} 4. Be3 {[%emt 0:00:52]} a6 {[%emt 0:00:28]} 5. f4 {[%emt 0:01:08]} b5 {[%emt 0:00:27]} 6. a3 {[%emt 0:01:01] B06: Moderne Verteidigung} (6. Bd3 Nd7 7. e5 c5 8. Nf3 Nh6 9. Be4 Rb8 10. dxc5 dxc5 11. h3 Bb7 12. Bxb7 Rxb7 13. g4 Qc8 {0-1 (39) Hou,Y (2658)-Nakamura,H (2777) chess.com INT 2018}) 6... Nd7 {[%emt 0:01:24]} 7. Qf3 {[%emt 0:23:19]} (7. Be2 $11) 7... Bb7 {[%emt 0:02:38]} 8. g4 {[%emt 0:03:26]} c5 {[%emt 0:07:36]} 9. Nge2 $146 {[%emt 0:12:55]} ({Vorgänger:} 9. d5 e6 10. dxe6 fxe6 11. Nh3 d5 12. exd5 Bxc3+ 13. bxc3 Bxd5 {0-1 (23) Balaskas,P (2074)-Martin Alvarez,I (2321) Rethymno 2010}) 9... Rc8 {[%emt 0:09:48]} 10. Rd1 {[%emt 0:20:12]} (10. d5 $11) 10... b4 {[%emt 0:03:19]} 11. axb4 {[%emt 0:00:45]} cxb4 {[%emt 0:00:31]} 12. Na2 {[%emt 0:04:43]} Rxc2 {[%emt 0:03:07]} 13. Bh3 {[%emt 0:00:43]} Rxb2 {[%emt 0:08:39]} 14. Nac1 {[%emt 0:00:16]} e6 {[%emt 0:14:24]} 15. O-O {[%emt 0:03:53]} Ngf6 {[%emt 0:05:38]} 16. Ng3 {[%emt 0:04:28]} (16. d5 $142 exd5 17. Bd4 dxe4 18. Qe3) 16... Qa8 {[%emt 0:03:27]} 17. Bg2 {[%emt 0:01:14]} Nxe4 {[%emt 0:04:03]} 18. Nxe4 {[%emt 0:01:10]} Rxg2+ {[%emt 0:00:12]} 19. Qxg2 {[%emt 0:00:04]} Bxe4 {[%emt 0:00:05]} 20. Qb2 {[%emt 0:00:11]} a5 {[%emt 0:01:19]} 21. Ne2 {[%emt 0:02:51]} O-O {[%emt 0:02:14]} 22. Ng3 {[%emt 0:00:40]} Bf3 {[%emt 0:01:21]} 23. Ra1 {[%emt 0:01:39]} Bxg4 {[%emt 0:01:08]} 24. Rfc1 {[%emt 0:00:52]} Nf6 {[%emt 0:01:15]} 25. Qa2 {[%emt 0:04:28]} Qf3 {[%emt 0:03:17]} 26. Qf2 {[%emt 0:00:08]} Qd5 {[%emt 0:01:24]} 27. Ra2 {[%emt 0:00:30]} b3 {[%emt 0:01:46]} 28. Ra4 {[%emt 0:00:43]} Qb5 {[%emt 0:01:18]} 29. Rca1 {[%emt 0:01:01]} b2 {[%emt 0:00:16]} 30. Rxa5 $19 {[%emt 0:00:05]} bxa1=R+ {[%emt 0:00:53]} 0-1

[Event "FIDE WCCC U12 2018"]
[Site "Santiago de Compostela"]
[Date "2018.11.09"]
[Round "5"]
[White "Klimkowski, Jan"]
[Black "Hommer, Jeremy"]
[Result "1/2-1/2"]
[ECO "B13"]
[WhiteElo "1810"]
[BlackElo "1987"]
[Annotator "NA RC"]
[PlyCount "106"]
[EventDate "2018.11.04"]
[EventType "swiss"]
[EventCountry "ESP"]
[SourceTitle "playchess.com"]
[Source "ChessBase"]
[SourceQuality "1"]
[TimeControl "40/5400+30:1800+30"]

{[%evp 13,105,9,15,22,10,23,0,7,13,-18,-31,-25,16,-15,-7,-8,-10,-60,-50,-75,-70,-87,-70,-94,-84,-87,-89,-106,32767,-105,32767,32767,32767,-84,32767,-40,32767,32767,-23,-12,0,0,32767,32767,0,0,0,32767,32767,0,32767,32767,-50,-53,-59,-56,32767,32767,-64,-71,32767,-77,-62,32767,32767,32767,-89,32767,32767,32767,-102,-105,-113,-85,-90,-82,-41,-43,-35,-52,-46,-27,-8,32767,-43,32767,32767,-48,-39,-33,-26,-43,32767,-36]} 1. e4 {[%emt 0:00:00]} c6 {[%emt 0:00:00]} 2. d4 {[%emt 0:00:00]} d5 {[%emt 0:00:00]} 3. exd5 {[%emt 0:00:00]} cxd5 {[%emt 0:00:00]} 4. c4 {[%emt 0:00:00]} Nf6 {[%emt 0:00:12]} 5. Nc3 {[%emt 0:00:06]} Nc6 {[%emt 0:00:13]} 6. Bg5 {[%emt 0:05:46]} e6 {[%emt 0:11:40]} 7. c5 {[%emt 0:01:40]} Be7 {[%emt 0:00:26]} 8. Nf3 {[%emt 0:01:31]} O-O {[%emt 0:01:04]} 9. Bb5 {[%emt 0:01:37]} Ne4 {[%emt 0:01:25]} 10. Bxe7 {[%emt 0:01:32]} Nxe7 {[%emt 0:00:09]} 11. O-O {[%emt 0:01:21] B14: Caro-Kann: Panov-Botvinnik Attack with 5...e6 and 5...g6} (11. Rc1 b6 12. c6 Qd6 13. O-O a6 14. Bd3 Nxc6 15. Nxe4 dxe4 16. Bxe4 Bb7 17. d5 exd5 18. Qxd5 Rad8 19. Rxc6 Qxd5 20. Bxd5 {½-½ (33) Naiditsch,A (2712)-Rodshtein,M (2645) Porto Carras 2011}) 11... Nxc3 {[%emt 0:02:06]} 12. bxc3 {[%emt 0:00:06] LiveBook: 6 Games} Qa5 {[%emt 0:02:32]} 13. Qa4 {[%emt 0:06:10]} Qxa4 {[%emt 0:08:44]} 14. Bxa4 {[%emt 0:00:05]} b6 $146 {[%emt 0:00:55]} ({Predecessor:} 14... f6 15. Rfe1 Rd8 16. Rab1 Kf7 17. Rb2 a5 18. Rb6 Ra7 {1-0 (40) Gratze,M (2006)-Horyna,J (1875) Teplice 2013}) 15. cxb6 {[%emt 0:04:40]} axb6 {[%emt 0:00:10]} 16. Bb5 {[%emt 0:03:40]} Ba6 {[%emt 0:02:36]} 17. Rfb1 {[%emt 0:05:37]} Rfc8 {[%emt 0:05:12]} 18. Bxa6 {[%emt 0:03:40]} Rxa6 {[%emt 0:00:34]} 19. Rb3 {[%emt 0:00:12]} Rca8 {[%emt 0:06:49]} 20. g3 {[%emt 0:05:35]} f6 {[%emt 0:05:17]} 21. a4 {[%emt 0:04:55]} Kf7 {[%emt 0:00:50]} 22. Nd2 {[%emt 0:03:30]} Rxa4 {[%emt 0:09:29]} 23. Rxa4 {[%emt 0:00:13]} Rxa4 {[%emt 0:00:02]} 24. Rxb6 {[%emt 0:00:44]} Ra1+ {[%emt 0:00:52]} 25. Rb1 {[%emt 0:03:25]} Rxb1+ {[%emt 0:06:39]} 26. Nxb1 {[%emt 0:00:06]} e5 {[%emt 0:00:08]} 27. Nd2 {[%emt 0:01:58]} Ke6 {[%emt 0:04:37]} 28. f3 {[%emt 0:03:18]} Nf5 {[%emt 0:03:56]} 29. Kf2 {[%emt 0:03:15]} Nd6 {[%emt 0:09:05]} 30. Ke3 {[%emt 0:01:55]} g5 {[%emt 0:01:10]} 31. g4 {[%emt 0:04:01]} f5 {[%emt 0:09:28]} 32. Nb3 {[%emt 0:14:04]} f4+ {[%emt 0:01:01]} 33. Ke2 {[%emt 0:01:03]} e4 $1 {[%emt 0:00:41]} 34. Nc5+ {[%emt 0:00:47]} Ke7 {[%emt 0:00:08]} 35. Kf2 {[%emt 0:01:28]} e3+ {[%emt 0:02:11]} 36. Ke2 {[%emt 0:00:05]} Nb5 {[%emt 0:03:07]} 37. Kd3 {[%emt 0:01:30]} Nc7 {[%emt 0:01:58]} 38. c4 {[%emt 0:03:27]} dxc4+ {[%emt 0:00:07]} 39. Kxc4 {[%emt 0:00:00]} Ne6 {[%emt 0:00:00]} 40. Nd3 {[%emt 0:00:00]} Kd6 {[%emt 0:00:00]} 41. Nb4 {[%emt 0:06:24]} Nc7 {[%emt 0:04:12]} 42. Nd3 {[%emt 0:05:12]} Nd5 {[%emt 0:05:23]} 43. Ne1 {[%emt 0:01:32]} Nb6+ {[%emt 0:02:55]} 44. Kd3 {[%emt 0:00:11]} Ke6 {[%emt 0:03:03]} 45. h4 {[%emt 0:05:28]} h6 {[%emt 0:03:28]} 46. hxg5 {[%emt 0:00:26]} hxg5 {[%emt 0:00:02]} 47. Nc2 {[%emt 0:01:54]} Na4 {[%emt 0:02:34]} 48. Ke4 {[%emt 0:03:14]} Nc3+ {[%emt 0:01:15]} 49. Kd3 {[%emt 0:00:07]} Nd1 {[%emt 0:01:08]} 50. Ke2 {[%emt 0:00:45]} Nf2 {[%emt 0:00:59]} 51. Nb4 {[%emt 0:01:48]} Kd6 {[%emt 0:00:47]} 52. Ke1 {[%emt 0:00:25]} Nh3 {[%emt 0:01:49]} 53. Kf1 $15 {[%emt 0:00:10]} Nf2 1/2-1/2

[Event "FIDE WCCC U12 2018"]
[Site "Santiago de Compostela"]
[Date "2018.11.09"]
[Round "5"]
[White "Del Prado Rodriguez, Xulio"]
[Black "Anghel, Iulian-Mihai"]
[Result "1/2-1/2"]
[ECO "A05"]
[WhiteElo "1734"]
[BlackElo "1981"]
[Annotator "NA RC"]
[PlyCount "86"]
[EventDate "2018.11.04"]
[EventType "swiss"]
[EventCountry "ESP"]
[SourceTitle "playchess.com"]
[Source "ChessBase"]
[SourceQuality "1"]
[TimeControl "40/5400+30:1800+30"]

{[%evp 10,86,16,13,24,27,27,20,39,14,17,19,22,32767,37,3,2,32767,0,32767,32767,32767,32767,1,2,22,22,32767,8,0,8,0,32767,0,32767,32767,32767,12,32767,6,32767,10,8,4,41,1,32767,32767,32767,32767,7,32767,0,8,0,32767,18,32767,0,0,32767,32767,0,32767,0,0,0,0,0,0,0,0,0,0,0,0,0,0,0]} 1. Nf3 {[%emt 0:00:00]} Nf6 {[%emt 0:00:40]} 2. c4 {[%emt 0:00:53]} e6 {[%emt 0:00:50]} 3. g3 {[%emt 0:02:08]} d5 {[%emt 0:03:51]} 4. d4 {[%emt 0:00:28]} Bb4+ {[%emt 0:07:34]} 5. Bd2 {[%emt 0:01:38]} Bxd2+ {[%emt 0:00:55]} 6. Nbxd2 {[%emt 0:03:56]} O-O {[%emt 0:00:53]} 7. Bg2 {[%emt 0:00:30]} b6 {[%emt 0:04:29]} 8. O-O {[%emt 0:07:36] E11: Damenindisch (Bogoljubow-Variante)} Bb7 {[%emt 0:00:40] LiveBook: 17 Games} 9. Qc2 {[%emt 0:01:10]} (9. cxd5 Bxd5 10. Re1 Nbd7 11. e4 Bb7 12. e5 Nd5 13. Ne4 h6 14. Rc1 Qe7 15. a3 a5 {½-½ (41) Nakamura,H (2778)-Giri,A (2696) Biel 2012}) 9... Na6 {[%emt 0:04:51]} 10. Rfd1 $146 {[%emt 0:08:10]} ({Vorgänger:} 10. Ne5 Nd7 11. Ndf3 Nxe5 12. Nxe5 f6 13. Nd3 c6 14. b4 Nc7 15. c5 Nb5 16. Qb2 {0-1 (78) Hesse,H (2184)-Reindl,A (2013) Willingen 2017}) 10... Rc8 {[%emt 0:03:35]} 11. Rac1 {[%emt 0:03:45]} Qe7 {[%emt 0:08:10]} 12. Qb1 {[%emt 0:04:55]} Rfd8 {[%emt 0:02:13]} 13. e3 {[%emt 0:11:31]} c5 {[%emt 0:02:19]} 14. cxd5 {[%emt 0:05:33]} Nxd5 {[%emt 0:10:35]} 15. Ne4 {[%emt 0:03:34]} h6 {[%emt 0:11:38]} 16. dxc5 {[%emt 0:03:15]} Nxc5 {[%emt 0:03:11]} 17. Nxc5 {[%emt 0:00:23]} bxc5 {[%emt 0:00:19]} 18. Nd2 {[%emt 0:08:23]} Nb4 {[%emt 0:05:13]} 19. Nc4 {[%emt 0:01:46]} Bxg2 {[%emt 0:00:41]} 20. Kxg2 {[%emt 0:00:09]} Qb7+ {[%emt 0:00:37]} 21. Kg1 {[%emt 0:01:40]} Qa6 {[%emt 0:11:10]} 22. Rxd8+ {[%emt 0:05:29]} Rxd8 {[%emt 0:00:05]} 23. a3 {[%emt 0:00:07]} Nd5 {[%emt 0:03:10]} 24. Qc2 {[%emt 0:01:34]} Nb6 {[%emt 0:01:28]} 25. h3 {[%emt 0:06:57]} Qb7 {[%emt 0:05:02]} 26. b3 {[%emt 0:10:52]} Rd5 {[%emt 0:03:24]} 27. h4 {[%emt 0:02:48]} Qc8 {[%emt 0:02:27]} 28. Qe2 {[%emt 0:01:09]} Qd8 {[%emt 0:00:27]} 29. Qf3 {[%emt 0:00:55]} Rf5 {[%emt 0:00:45]} 30. Qe4 {[%emt 0:00:16]} Nxc4 {[%emt 0:00:35]} 31. Qxc4 {[%emt 0:00:23]} Qd2 {[%emt 0:00:28]} 32. Rf1 {[%emt 0:00:48]} Rd5 {[%emt 0:00:47]} 33. Qb5 {[%emt 0:01:05]} g6 {[%emt 0:00:51]} 34. Qb8+ {[%emt 0:00:10]} Kg7 {[%emt 0:00:05]} 35. Qxa7 {[%emt 0:00:09]} Qb2 {[%emt 0:00:47]} 36. Qa4 {[%emt 0:00:23]} Rd3 {[%emt 0:00:21]} 37. Qb5 {[%emt 0:00:59]} Rxb3 {[%emt 0:00:38]} 38. Qxc5 {[%emt 0:00:07]} Rxa3 {[%emt 0:00:20]} 39. Qc6 {[%emt 0:00:42]} Ra1 {[%emt 0:01:30]} 40. Rxa1 {[%emt 0:00:00]} Qxa1+ {[%emt 0:00:00]} 41. Kg2 {[%emt 0:00:23]} Qf6 {[%emt 0:00:22]} 42. Qe4 {[%emt 0:03:49]} h5 {[%emt 0:00:17]} 43. Qc6 {[%emt 0:03:34]} Qe5 $11 {[%emt 0:00:21]} 1/2-1/2

[Event "FIDE WCCC U12 2018"]
[Site "Santiago de Compostela"]
[Date "2018.11.10"]
[Round "6"]
[White "Kostolansky, Sebastian Lukas"]
[Black "Revaliente Montoya, Ciro"]
[Result "1-0"]
[ECO "B50"]
[WhiteElo "2323"]
[BlackElo "1961"]
[Annotator "ChessBase"]
[PlyCount "69"]
[EventDate "2018.11.04"]
[EventType "swiss"]
[EventCountry "ESP"]
[SourceTitle "playchess.com"]
[Source "ChessBase"]
[SourceQuality "1"]
[TimeControl "40/5400+30:1800+30"]

1. e4 {[%emt 0:00:00]} c5 {[%emt 0:00:00]} 2. Nf3 {[%emt 0:00:00]} d6 {[%emt 0:00:00]} 3. c3 {[%emt 0:00:00]} Nf6 {[%emt 0:00:01]} 4. Be2 {[%emt 0:00:56]} Nc6 {[%emt 0:01:25]} 5. d4 {[%emt 0:00:07]} cxd4 {[%emt 0:02:38]} 6. cxd4 {[%emt 0:00:05]} Bd7 {[%emt 0:04:38]} 7. Nc3 {[%emt 0:01:57]} g6 {[%emt 0:03:29]} 8. d5 {[%emt 0:02:04]} Nb8 {[%emt 0:01:37]} 9. Be3 {[%emt 0:03:59]} Bg7 {[%emt 0:00:14]} 10. O-O {[%emt 0:01:38]} O-O {[%emt 0:00:05]} 11. Qb3 {[%emt 0:28:53]} Bc8 {[%emt 0:11:45]} 12. Rac1 {[%emt 0:05:12]} Nbd7 {[%emt 0:04:26]} 13. h3 {[%emt 0:10:03]} a6 {[%emt 0:13:48]} 14. Nd4 {[%emt 0:08:52]} Re8 {[%emt 0:10:56]} 15. Rfd1 {[%emt 0:03:40]} Nc5 {[%emt 0:09:44]} 16. Qc2 {[%emt 0:00:06]} a5 {[%emt 0:02:07]} 17. f4 {[%emt 0:03:56]} Nfd7 {[%emt 0:06:41]} 18. Bb5 {[%emt 0:02:40]} Rf8 {[%emt 0:05:52]} 19. a3 {[%emt 0:02:08]} Na6 {[%emt 0:02:40]} 20. Na4 {[%emt 0:16:40]} Ndc5 {[%emt 0:05:45]} 21. Nxc5 {[%emt 0:01:46]} Nxc5 {[%emt 0:01:04]} 22. e5 {[%emt 0:01:02]} a4 {[%emt 0:06:02]} 23. Qe2 {[%emt 0:01:08]} Bd7 {[%emt 0:02:30]} 24. Bc4 {[%emt 0:00:13]} Rc8 {[%emt 0:03:24]} 25. e6 fxe6 {[%emt 0:00:30]} 26. dxe6 {[%emt 0:00:30]} Bc6 {[%emt 0:00:31]} 27. Nxc6 {[%emt 0:00:19]} Rxc6 28. Bb5 {[%emt 0:00:16]} Nb3 {[%emt 0:01:14]} 29. Rxc6 {[%emt 0:01:24]} bxc6 {[%emt 0:00:01]} 30. Bxa4 {[%emt 0:00:32]} Qb8 {[%emt 0:00:59]} 31. Bxc6 {[%emt 0:00:18]} Na5 {[%emt 0:00:01]} 32. Bd5 {[%emt 0:01:38]} Qxb2 {[%emt 0:00:21]} 33. Qxb2 {[%emt 0:00:05]} Bxb2 {[%emt 0:00:04]} 34. Rb1 {[%emt 0:00:26]} Bxa3 {[%emt 0:01:10]} 35. Rb5 {[%emt 0:00:05]} 1-0

[Event "FIDE WCCC U12 2018"]
[Site "Santiago de Compostela"]
[Date "2018.11.10"]
[Round "6"]
[White "Wang, Jason"]
[Black "Thomforde-Toates, Noah"]
[Result "1-0"]
[ECO "E12"]
[WhiteElo "2229"]
[BlackElo "1970"]
[Annotator "ChessBase"]
[PlyCount "101"]
[EventDate "2018.11.04"]
[EventType "swiss"]
[EventCountry "ESP"]
[SourceTitle "playchess.com"]
[Source "ChessBase"]
[SourceQuality "1"]
[TimeControl "40/5400+30:1800+30"]

1. d4 {[%emt 0:00:00]} Nf6 {[%emt 0:00:00]} 2. c4 {[%emt 0:00:00]} e6 {[%emt 0:00:00]} 3. Nf3 {[%emt 0:00:00]} b6 {[%emt 0:00:00]} 4. a3 {[%emt 0:00:00]} Bb7 {[%emt 0:00:00]} 5. Nc3 {[%emt 0:00:00]} Be7 {[%emt 0:00:24]} 6. d5 {[%emt 0:00:08]} exd5 {[%emt 0:02:48]} 7. cxd5 {[%emt 0:00:08]} O-O {[%emt 0:00:25]} 8. e4 {[%emt 0:00:13]} d6 {[%emt 0:00:31]} 9. Bd3 {[%emt 0:00:08]} Nbd7 {[%emt 0:01:06]} 10. O-O {[%emt 0:00:16]} Ng4 {[%emt 0:06:15]} 11. Nd4 {[%emt 0:04:26]} Nge5 {[%emt 0:01:04]} 12. Be2 {[%emt 0:06:14]} Bf6 {[%emt 0:02:28]} 13. Be3 {[%emt 0:02:12]} Re8 {[%emt 0:01:59]} 14. Qc2 {[%emt 0:01:54]} a6 {[%emt 0:02:21]} 15. Rad1 {[%emt 0:02:56]} Qe7 {[%emt 0:11:49]} 16. f4 {[%emt 0:09:17]} Ng6 {[%emt 0:00:38]} 17. b4 {[%emt 0:07:43]} Rac8 {[%emt 0:09:56]} 18. Nc6 {[%emt 0:08:58]} Bxc6 {[%emt 0:15:59]} 19. dxc6 {[%emt 0:00:12]} Nb8 {[%emt 0:00:38]} 20. Bg4 {[%emt 0:18:36]} Rcd8 {[%emt 0:02:17]} 21. Nd5 {[%emt 0:02:40]} Qxe4 {[%emt 0:05:00]} 22. Qxe4 {[%emt 0:00:14]} Rxe4 {[%emt 0:00:12]} 23. Bxb6 {[%emt 0:01:00]} Nxc6 {[%emt 0:01:12]} 24. Bxc7 {[%emt 0:01:05]} Rf8 {[%emt 0:06:06]} 25. Bf3 {[%emt 0:04:15]} Rc4 {[%emt 0:03:54]} 26. Nxf6+ {[%emt 0:00:52]} gxf6 {[%emt 0:00:16]} 27. Bxd6 {[%emt 0:00:34]} Rd8 {[%emt 0:02:14]} 28. Bd5 {[%emt 0:08:53]} Rd4 {[%emt 0:03:00]} 29. Bxc6 {[%emt 0:00:05]} R8xd6 {[%emt 0:00:35]} 30. Rxd4 {[%emt 0:00:05]} Rxd4 {[%emt 0:00:39]} 31. g3 {[%emt 0:00:11]} Ne7 {[%emt 0:06:35]} 32. Bb7 {[%emt 0:00:34]} Rd3 {[%emt 0:01:28]} 33. Ra1 {[%emt 0:00:30]} Rd6 {[%emt 0:00:32]} 34. Rc1 {[%emt 0:01:01]} Kf8 {[%emt 0:01:26]} 35. Rc5 {[%emt 0:01:14]} Ke8 {[%emt 0:02:01]} 36. Ra5 {[%emt 0:02:18]} Rd2 {[%emt 0:03:19]} 37. Rxa6 {[%emt 0:01:28]} Nf5 {[%emt 0:00:33]} 38. Rxf6 {[%emt 0:02:41]} Ne3 {[%emt 0:00:55]} 39. Bf3 {[%emt 0:01:49]} Nc2 {[%emt 0:01:01]} 40. Ra6 {[%emt 0:00:00]} Nd4 {[%emt 0:00:00]} 41. Bb7 {[%emt 0:01:36]} Rb2 {[%emt 0:03:39]} 42. Ra5 {[%emt 0:00:47]} Ke7 {[%emt 0:00:49]} 43. Re5+ {[%emt 0:00:40]} Kf6 {[%emt 0:01:10]} 44. Rc5 {[%emt 0:02:25]} Kg7 {[%emt 0:05:55]} 45. Bd5 {[%emt 0:03:08]} f5 {[%emt 0:02:29]} 46. Rc4 {[%emt 0:00:43]} Nc2 {[%emt 0:01:10]} 47. Rc3 {[%emt 0:00:32]} Nd4 {[%emt 0:00:35]} 48. Rd3 {[%emt 0:00:45]} Nc2 {[%emt 0:00:45]} 49. Bc6 {[%emt 0:01:45]} Ra2 {[%emt 0:01:39]} 50. b5 {[%emt 0:00:30]} Rb2 {[%emt 0:00:46]} 51. a4 {[%emt 0:00:29]} 1-0